Cogmind - Beta 15 @@@ ROGUE MODE // 2025.05.17 @ 15:22:40 Player: Ciaphas Result: Destroyed by Y-45 Defender with Heavy Assault Rifle Performance ------------- Evolutions (2) 1000 Regions Visited (7) 1400 Robots Destroyed (72) 360 Value Destroyed (2097) 2097 Prototype IDs (3) 60 Alien Tech Used (0) 0 Bonus (710) 710 TOTAL SCORE: 5627 Bonus ------- High Alert Combat Kills 10 Entered Garrisons 200 Used RIF Installer 500 Cogmind --------- Core Integrity 0/550 Matter 71/300 Energy 158/160 System Corruption 0% Temperature Cool (9) Movement Rolling (90) Location -8/Materials Parts ------- > --- POWER (1) -------- Light Nuclear Core > --- PROPULSION (2) --- Armored Wheel Armored Wheel > --- UTILITY (6) ------ Medium Storage Unit Improved Targeting Computer Relay Coupler [NC] (12) Relay Coupler [Sentry] (17) Relay Coupler [Sentry] (19) > --- WEAPON (2) ------- Datajack > --- INVENTORY (10) --- Light Nuclear Core Advanced Weight Redist. System ECM Suite Great Maul Peak State ------------ > --- POWER ------------ Light Nuclear Core > --- PROPULSION ------- Light Treads Improved Treads > --- UTILITY ---------- High-capacity Storage Unit Improved Signal Interpreter Targeting Computer Improved Targeting Computer Hardened Light Armor Plating Hacking Suite > --- WEAPON ----------- High-powered Shotgun Heavy Flail > --- INVENTORY -------- Improved Ion Engine Light Treads Light Treads High-capacity Matter Pod Sensor Array Terrain Scanner ECM Suite Hacking Suite Relay Coupler [NC] Tractor Beam Advanced Beam Cannon High-powered Shotgun High-powered Shotgun High-powered Shotgun Grenade Launcher Grenade Launcher Datajack Datajack Mining Laser [Rating: 27] Favorites ----------- Power Light Nuclear Core Engine Ion Engine Power Core Light Nuclear Core Propulsion Light Treads Treads Light Treads Leg Aluminum Leg Wheel Armored Wheel Utility Targeting Computer Device Sensor Array Storage High-capacity Storage Unit Processor Targeting Computer Hackware Hacking Suite Protection Hardened Light Armor Plating Weapon High-powered Shotgun Energy Gun Small Laser Energy Cannon Advanced Beam Cannon Ballistic Gun High-powered Shotgun Launcher Grenade Launcher Impact Weapon Heavy Flail Special Melee Weapon Datajack Build | -11 -10 -10 -9 -9 -8 -8 -8 ------- Run | Yrd Mat Min Mat Min Mat Gar Mat Slots Evolved 4 | . . . 2 . 2 . . Power . | . . . . . . . . Propulsion . | . . . . . . . . Utility 4 | . . . 2 . 2 . . Weapon . | . . . . . . . . Parts Attached 49 | . 15 . 8 3 9 7 7 Power 4 | . . . 2 . 1 . 1 Engine 2 | . . . 2 . . . . Core 2 | . . . . . 1 . 1 Reactor . | . . . . . . . . Propulsion 12 | . 4 . 2 1 2 1 2 Treads 10 | . 4 . 2 1 2 1 . Leg . | . . . . . . . . Wheel 2 | . . . . . . . 2 Hover . | . . . . . . . . Flight . | . . . . . . . . Utility 20 | . 6 . 2 2 4 2 4 Device 4 | . 3 . . . . 1 . Storage 3 | . 1 . . . . 1 1 Processor 6 | . 2 . . 2 2 . . Hackware 4 | . . . . . 1 . 3 Protection 3 | . . . 2 . 1 . . Artifact . | . . . . . . . . Weapon 13 | . 5 . 2 . 2 4 . Energy Gun 1 | . 1 . . . . . . Energy Cannon 1 | . . . . . . 1 . Ballistic Gun 6 | . 2 . 2 . 2 . . Ballistic Cannon . | . . . . . . . . Launcher 2 | . 1 . . . . 1 . Special Weapon . | . . . . . . . . Impact Weapon 1 | . . . . . . 1 . Slashing Weapon . | . . . . . . . . Piercing Weapon . | . . . . . . . . Special Melee Weapon 2 | . 1 . . . . 1 . Unidentified Prototypes 1 | . . . . . . 1 . Parts Lost 16 | . 1 . . . 2 13 . Power 2 | . . . . . . 2 . Propulsion 5 | . . . . . 1 4 . Utility 3 | . . . . . 1 2 . Weapon 6 | . 1 . . . . 5 . Highest Loss Streak 7 | . 1 . . . 1 7 . To Critical Strikes . | . . . . . . . . Average Backups 11 | 3 5 11 11 15 15 17 3 Power . | 1 1 1 . . . . 1 Propulsion 1 | 2 . 2 1 1 1 1 . Utility 4 | . 2 5 4 7 5 8 1 Weapon 3 | . 1 3 4 4 5 5 1 Tool/Special . | . . . . . . . . Unused Backups 18 | . 6 . 1 . . 6 5 Power 3 | . 1 . 1 . . . 1 Propulsion 2 | . 2 . . . . . . Utility 10 | . 3 . . . . 5 2 Weapon 3 | . . . . . . 1 2 Tool/Special . | . . . . . . . . Average Slot Usage (%) 96 | . 98 100 99 100 99 89 76 Engine 7 | . 14 14 11 11 2 3 . Core 2 | . . . . . 6 4 5 Treads 19 | . 24 28 22 22 18 15 . Device 6 | . 9 . 16 3 . . . Storage 10 | . 14 14 11 11 9 8 . Processor 16 | . 3 14 11 18 26 27 24 Hackware 4 | . . . . . 8 8 24 Protection 4 | . . . 4 11 9 4 . Ballistic Gun 17 | . 22 5 20 22 17 10 1 Special Melee Weapon 1 | . 1 14 1 . . . 8 Peak Build Rating 27 | 6 9 8 17 18 26 27 26 Average Rating 16 | 6 7 8 15 17 23 23 20 On Entrance 12 | 6 6 8 8 17 18 26 7 Naked Turns . | . . . . . . . . Heaviest Build 59 | 14 50 49 59 59 58 56 16 Greatest Support 43 | 20 40 40 40 40 43 43 24 Greatest Overweight (x) 17 | . 2 1 1 1 1 17 . Average Overweight (x) . | . . 1 1 1 1 . . Largest Inventory Capacity 20 | 8 20 20 20 20 20 20 10 Average Capacity 18 | 8 18 20 20 20 20 19 5 Most Carried 20 | 5 11 11 16 17 18 20 5 Average Carried 11 | 3 5 11 11 15 15 17 3 Final Capacity 20 | 8 20 20 20 20 20 5 10 Final Carried 18 | 3 11 11 16 15 18 5 4 Class Distribution -------------------- 80% | Mutant 16% | Scavenger-Mutant Dominant Class ---------------- Mutant | -10/Materials Mutant | -10/Mines Mutant | -9/Materials Mutant | -9/Mines Scavenger-Mutant | -8/Materials Mutant | -8/Garrison Mutant | -8/Materials Resources | -11 -10 -10 -9 -9 -8 -8 -8 ----------- Run | Yrd Mat Min Mat Min Mat Gar Mat Matter Collected 1803 | 218 587 84 224 53 432 73 132 Remotely . | . . . . . . . . Salvage Created 1672 | 90 718 . 285 . 388 191 . Parts 106 | 4 39 . 17 . 22 24 . Haulers Intercepted 4 | . 2 . 1 . 1 . . Recyclers Shooed 1 | 1 . . . . . . . Parts Field Recycled . | . . . . . . . . Retrieved Matter . | . . . . . . . . Parts Self-Destructed . | . . . . . . . . Prevented . | . . . . . . . . Kills | -11 -10 -10 -9 -9 -8 -8 -8 ------- Run | Yrd Mat Min Mat Min Mat Gar Mat Combat Hostiles Destroyed 54 | . 18 . 6 . 12 18 . Melee 1 | . . . . . . 1 . Guns 29 | . 11 . 6 . 9 3 . AOE 24 | . 7 . . . 3 14 . Classes Destroyed 11 | 2 5 . 2 . 2 . . Builder 1 | . . . . . 1 . . Tunneler 3 | 1 2 . . . . . . Hauler 4 | . 2 . 1 . 1 . . Recycler 3 | 1 1 . . . 1 . . Mechanic 1 | . . . 1 . . . . Operator 3 | . 1 . 1 . 1 . . Watcher 3 | . 3 . . . . . . Swarmer 25 | . 9 . . . 4 12 . Grunt 22 | . 9 . 3 . 4 6 . Sentry 6 | . . . 3 . 3 . . Hunter 1 | . . . . . 1 . . Best Kill Streak 7 | 2 5 . 2 . 5 7 . Combat Bots Only 7 | . 4 . 2 . 4 7 . Max Kills in Single Turn 4 | 1 2 . 1 . 4 3 . Gunslinging . | . . . . . . . . Exploded 3 | . 2 . . . 3 3 . Melee 1 | . . . . . . 1 . Uniques/NPCs Destroyed . | . . . . . . . . Combat | -11 -10 -10 -9 -9 -8 -8 -8 -------- Run | Yrd Mat Min Mat Min Mat Gar Mat Hostile Shots Fired 349 | . 74 . 35 . 53 161 26 Missed 89 | . 18 . 11 . 16 38 6 Hits 260 | . 56 . 24 . 37 123 20 Projectile 260 | . 56 . 24 . 37 123 20 Critical Strikes 4 | . . . . . 1 2 1 Damage Taken 3313 | . 580 . 314 . 670 1451 298 Core 710 | . 111 . 45 . 62 340 152 Absorbed by Shields 12 | . . . . . . 12 . Regen/Repaired (Parts) 123 | . . . . . 123 . . Core Remaining (%) 81 | 100 . 55 . 88 . . . Volleys Fired 157 | 3 60 . 31 . 36 18 9 Largest 2 | 2 2 . 2 . 2 2 1 Hottest 60 | 40 60 . 50 . 50 60 25 Shots Fired 275 | 6 110 . 52 . 71 27 9 Gun 249 | 6 104 . 52 . 70 8 9 Cannon . | . . . . . . . . Launcher 26 | . 6 . . . 1 19 . Special . | . . . . . . . . Kinetic 245 | 6 100 . 52 . 70 8 9 Thermal 4 | . 4 . . . . . . Explosive 26 | . 6 . . . 1 19 . Electromagnetic . | . . . . . . . . Robot Hit Streak 21 | 5 19 . 7 . 21 8 8 Robot Miss Streak 6 | . 6 . 4 . 2 2 4 Penetration Max . | . . . . . . . . Secondary Targets . | . . . . . . . . Shots Hit Robots 198 | 5 66 . 37 . 62 17 11 Core Hits 128 | 3 40 . 18 . 35 31 1 Critical Kills 3 | 1 2 . . . . . . Critical Parts Destroyed . | . . . . . . . . Critical Strikes 3 | 1 2 . . . . . . Destroy 3 | 1 2 . . . . . . Melee Attacks 11 | . 1 . . . . 6 4 Impact 6 | . . . . . . 6 . Slashing . | . . . . . . . . Piercing . | . . . . . . . . Sneak Attacks 2 | . . . . . . . 2 Combat Hostiles . | . . . . . . . . Follow-up Attacks . | . . . . . . . . Damage Inflicted 5154 | 57 1208 . 705 3 1698 1322 161 Guns 3168 | 57 788 . 705 . 1327 130 161 Cannons . | . . . . . . . . Explosions 1882 | . 416 . . . 354 1112 . Melee 39 | . . . . . . 39 . Ramming 65 | . 4 . . 3 17 41 . Kinetic 3145 | 57 765 . 705 . 1327 130 161 Thermal 159 | . 23 . . . 136 . . Explosive 1746 | . 416 . . . 218 1112 . Electromagnetic . | . . . . . . . . Impact 39 | . . . . . . 39 . Slashing . | . . . . . . . . Piercing . | . . . . . . . . Highest Corruption 1 | . . . 1 1 . . . Average Corruption 1 | . . . 1 1 . . . Corruption Purged . | . . . . . . . . Corruption Blocked . | . . . . . . . . Effects 5 | . . . 4 1 . . . Message Errors 1 | . . . 1 . . . . Matter Fused 1 | . . . . 1 . . . Energy Discharges 1 | . . . 1 . . . . Data Loss (major) 1 | . . . 1 . . . . Misfires 1 | . . . 1 . . . . Overload Shots . | . . . . . . . . Overflow Damage 141 | . 18 . . . 52 71 . Projectiles . | . . . . . . . . Explosions 141 | . 18 . . . 52 71 . Melee . | . . . . . . . . Knockbacks 1 | . . . . . . 1 . Impact 1 | . . . . . . 1 . Kinetic . | . . . . . . . . Secondary . | . . . . . . . . Self-Inflicted Damage 186 | . . . . . 114 72 . Shots 5 | . . . . . 2 3 . Rammed 23 | . 1 . . 2 2 18 . Targets Rammed 23 | . 1 . . 2 2 18 . Kicked . | . . . . . . . . Crushed . | . . . . . . . . Highest Temperature 30 | . 6 . 8 . 30 24 . Average Temperature 9 | . 6 . 3 . 11 9 . Received Heat Transfer 1158 | . 186 . 126 . 261 396 189 Siege Activations . | . . . . . . . . Martial Activations . | . . . . . . . . Shielding Activations . | . . . . . . . . Robots Disrupted . | . . . . . . . . Combat Hostiles . | . . . . . . . . Robots Corrupted . | . . . . . . . . Combat Hostiles . | . . . . . . . . Parts Fried . | . . . . . . . . Impact Corruptions . | . . . . . . . . Robots Melted . | . . . . . . . . Combat Hostiles . | . . . . . . . . Parts Melted . | . . . . . . . . Heat Transferred 150 | . 50 . . . 100 . . Parts Sabotaged . | . . . . . . . . Parts Stolen . | . . . . . . . . Parts Stripped . | . . . . . . . . Power Chain Reactions . | . . . . . . . . Alert | -11 -10 -10 -9 -9 -8 -8 -8 ------- Run | Yrd Mat Min Mat Min Mat Gar Mat Maximum Alert Level 2 | . 1 . . . 1 2 1 Low Security (%) 86 | 100 89 100 100 100 92 38 74 Level 1 9 | . 10 . . . 7 30 25 Level 2 4 | . . . . . . 30 . Level 3 . | . . . . . . . . Level 4 . | . . . . . . . . Level 5 . | . . . . . . . . High Security . | . . . . . . . . Max Security . | . . . . . . . . Peak Influence 446 | 10 281 106 90 . 235 446 226 Initial 206 | . . 106 9 . . 15 206 Average 99 | 5 115 67 20 . 89 262 171 Influence Increases 1966 | 10 671 . 220 . 458 539 68 Destroy 0b10 Robot/C 1080 | . 360 . 120 . 240 360 . Destroy 0b10 Robot/NC 90 | 10 45 . 15 . 20 . . Destroy Leader 214 | . 70 . 62 . 62 20 . Successful Hack 46 | . 13 . 6 . 7 12 8 Select Force Hacks 60 | . 60 . . . . . . Disable Machine 120 | . 45 . . . 75 . . Anti-Garrison Action 100 | . . . . . . 100 . Destroy Structure 91 | . 18 . 2 . 24 47 . Partial Spotted 30 | . . . 15 . . . 15 Lose Combat Pursuer 135 | . 60 . . . 30 . 45 Influence Decreases 1952 | 10 396 249 246 . 434 139 478 Entered New Map 413 | . . 169 17 . . 9 218 Time Decay 1229 | 10 386 80 229 . 414 . 110 Lost Part 160 | . 10 . . . 20 130 . Purge Threat 150 | . . . . . . . 150 Squads Dispatched 10 | . 3 . 5 . 2 . . Investigation 4 | . 2 . 2 . . . . Extermination . | . . . . . . . . Reinforcement 6 | . 1 . 3 . 2 . . Assault . | . . . . . . . . Garrison . | . . . . . . . . Intercept . | . . . . . . . . Searches Triggered . | . . . . . . . . Construction Impeded . | . . . . . . . . Haulers Reinforced . | . . . . . . . . Active Scanning Responses . | . . . . . . . . Cargo Convoy Interrupts . | . . . . . . . . Stealth | -11 -10 -10 -9 -9 -8 -8 -8 --------- Run | Yrd Mat Min Mat Min Mat Gar Mat Distress Signals 4 | . 1 . 1 . 2 . . Communications Jammed . | . . . . . . . . Distress Signals . | . . . . . . . . Times Spotted 97 | . 31 . 14 1 22 20 9 Peak Tracking Total 6 | . 5 . 5 1 4 6 4 Tactical Retreats 9 | . 4 . . . 2 . 3 Traps | -11 -10 -10 -9 -9 -8 -8 -8 ------- Run | Yrd Mat Min Mat Min Mat Gar Mat Traps Triggered 7 | . 1 . . . . 6 . Indirectly . | . . . . . . . . Trap Hack Attempts . | . . . . . . . . Triggered . | . . . . . . . . Disarmed . | . . . . . . . . Reprogrammed . | . . . . . . . . Reused . | . . . . . . . . Traps Extracted . | . . . . . . . . Installed . | . . . . . . . . Triggered . | . . . . . . . . Machines | -11 -10 -10 -9 -9 -8 -8 -8 ---------- Run | Yrd Mat Min Mat Min Mat Gar Mat Machines Disabled 10 | . 3 . . . 5 2 . Max in Single Turn 4 | . 2 . . . 4 1 . Garrison Relay 2 | . . . . . . 2 . Machines Repaired . | . . . . . . . . Machines Dismantled . | . . . . . . . . Machines Sabotaged . | . . . . . . . . Overloaded Fab Kills . | . . . . . . . . Hacking | -11 -10 -10 -9 -9 -8 -8 -8 --------- Run | Yrd Mat Min Mat Min Mat Gar Mat Machines Accessed 21 | . 6 . 4 . 7 1 3 Terminals 14 | . 4 . 2 . 4 1 3 Fabricators . | . . . . . . . . Repair Stations 1 | . . . . . 1 . . Recycling Units 3 | . 2 . 1 . . . . Scanalyzers 2 | . . . 1 . 1 . . Garrison Access 1 | . . . . . 1 . . Total Hacks 61 | . 16 . 13 . 22 1 9 Successful 40 | . 8 . 9 . 17 1 5 Failed 21 | . 8 . 4 . 5 . 4 Catastrophic 2 | . 1 . . . 1 . . Database Lockouts . | . . . . . . . . Manual 33 | . 11 . 4 . 11 . 7 Terminals 38 | . 10 . 5 . 13 1 9 Fabricators . | . . . . . . . . Repair Stations 2 | . . . . . 2 . . Recycling Units 9 | . 6 . 3 . . . . Scanalyzers 9 | . . . 5 . 4 . . Garrison Access 3 | . . . . . 3 . . Terminal Hacks 8 | . 1 . . . 5 1 1 Robot Analysis 2 | . . . . . 2 . . Prototype ID Bank 1 | . . . . . 1 . . Emergency Access Points 1 | . . . . . 1 . . Unreport Threat 1 | . . . . . . . 1 Dispatch Records 1 | . . . . . 1 . . Hauler Manifests 1 | . 1 . . . . . . Garrison Registry 1 | . . . . . . 1 . Fabricator Hacks . | . . . . . . . . Repair Station Hacks 2 | . . . . . 2 . . Scan Component 1 | . . . . . 1 . . Repair 1 | . . . . . 1 . . Recycling Unit Hacks 2 | . 1 . 1 . . . . Report Inventory 2 | . 1 . 1 . . . . Scanalyzer 9 | . . . 5 . 4 . . Insert Component 3 | . . . 2 . 1 . . Analyze 6 | . . . 3 . 3 . . Garrison Access Hacks 1 | . . . . . 1 . . Unlock Access 1 | . . . . . 1 . . Unauthorized Hacks 18 | . 6 . 3 . 5 . 4 Terminals 16 | . 4 . 3 . 5 . 4 Botnet 4 | . 1 . 1 . 1 . 1 Skim 12 | . 3 . 2 . 4 . 3 Fabricators . | . . . . . . . . Repair Stations . | . . . . . . . . Recycling Units 2 | . 2 . . . . . . Tunnel 2 | . 2 . . . . . . Scanalyzers . | . . . . . . . . Garrison Access . | . . . . . . . . Data Cores Recovered . | . . . . . . . . Used . | . . . . . . . . Hacking Detections 14 | . 5 . 4 . 4 . 1 Full Trace Events 2 | . . . 2 . . . . Feedback Events 1 | . . . 1 . . . . Corruption 1 | . . . 1 . . . . Feedback Blocked . | . . . . . . . . Robot Schematics Acquired . | . . . . . . . . Robots Built . | . . . . . . . . Authchips . | . . . . . . . . Time . | . . . . . . . . Total Robot Build Rating . | . . . . . . . . Part Schematics Acquired 3 | . . . 2 . 1 . . Parts Built . | . . . . . . . . Authchips . | . . . . . . . . Time . | . . . . . . . . Total Part Build Rating . | . . . . . . . . Parts Repaired 1 | . . . . . 1 . . Time 38 | . . . . . 38 . . Parts Recycled . | . . . . . . . . Recycled Matter . | . . . . . . . . Retrieved Matter . | . . . . . . . . Retrieved Components . | . . . . . . . . Parts Scanalyzed 3 | . . . 2 . 1 . . Part Schematics Acquired 3 | . . . 2 . 1 . . Parts Damaged . | . . . . . . . . Bothacking | -11 -10 -10 -9 -9 -8 -8 -8 ------------ Run | Yrd Mat Min Mat Min Mat Gar Mat Used RIF Installer 1 | . . . . . . 1 . Robots Hacked 2 | . . . . . . . 2 Non-combat 2 | . . . . . . . 2 Combat . | . . . . . . . . Robot Hacks Applied 3 | . . . . . . . 3 drop_inventory 1 | . . . . . . . 1 disarm_traps 1 | . . . . . . . 1 amplify_resonance 1 | . . . . . . . 1 Relay Couplers Released 7 | . . . . . . 7 . Machine Destruction 7 | . . . . . . 7 . Attached 3 | . . . . . . . 3 Fabnet Peak Effective % . | . . . . . . . . Robots Rewired . | . . . . . . . . Allies Hacked . | . . . . . . . . Hacks Repelled . | . . . . . . . . Allies | -11 -10 -10 -9 -9 -8 -8 -8 -------- Run | Yrd Mat Min Mat Min Mat Gar Mat Total Allies . | . . . . . . . . Largest Group . | . . . . . . . . Highest-Rated Group . | . . . . . . . . Highest-Rated Ally . | . . . . . . . . Total Orders . | . . . . . . . . Ally Attacks . | . . . . . . . . Total Damage . | . . . . . . . . Kills . | . . . . . . . . Allies Corrupted . | . . . . . . . . Allies Melted 1 | . . . . 1 . . . Intel | -11 -10 -10 -9 -9 -8 -8 -8 ------- Run | Yrd Mat Min Mat Min Mat Gar Mat Active Infowar (turns) 1981 | . 713 . 1199 69 . . . Sensors 1670 | . 404 . 1197 69 . . . Terrain 967 | . 309 . 658 . . . . Robot Analysis Total 2 | . . . . . 2 . . Derelict Logs Recovered 1 | . . . . 1 . . . Drone Launches . | . . . . . . . . Drone Recoveries . | . . . . . . . . Exploration | -11 -10 -10 -9 -9 -8 -8 -8 ------------- Run | Yrd Mat Min Mat Min Mat Gar Mat Turns Passed 4746 | 23 1017 170 1201 237 1214 651 233 Spaces Moved 1924 | 10 358 71 446 93 432 254 260 Core 180 | . . . . . . 67 113 Treads 1513 | . 284 71 446 93 432 187 . Legs 84 | 10 74 . . . . . . Wheels 147 | . . . . . . . 147 Hover . | . . . . . . . . Flight . | . . . . . . . . Fastest Speed 50 | 120 120 240 240 240 240 50 50 Average Speed 206 | 120 215 240 240 240 240 193 72 Slowest Speed 900 | 120 320 240 240 240 240 900 90 Overloaded Moves . | . . . . . . . . Propulsion Burnouts . | . . . . . . . . Robots Hopped . | . . . . . . . . Potential Cave-ins . | . . . . . . . . Cave-ins Triggered . | . . . . . . . . Exploration Rate (%) 34 | 2 67 25 40 31 40 43 24 Regions Visited 7 Branch Regions 2 Pre-discovered Areas 2 | . 2 . . . . . . Known Exits Taken 1 | . . . . . 1 . . Unknown Exits Taken 5 | 1 1 1 1 1 . . . Scrap Searched . | . . . . . . . . Spaces Dug 10 | . . . . . . 10 . Terrain Destroyed 85 | . 22 . . . 20 43 . Melee 1 | . . . . . . 1 . Projectile . | . . . . . . . . AOE 84 | . 22 . . . 20 42 . Terrain Rammed . | . . . . . . . . Walls Destroyed . | . . . . . . . . Machines Disabled . | . . . . . . . . Actions | -11 -10 -10 -9 -9 -8 -8 -8 --------- Run | Yrd Mat Min Mat Min Mat Gar Mat Total 2384 | 17 489 71 528 106 534 344 295 Wait 110 | . 38 . 21 3 47 . 1 Move 1916 | 9 357 70 445 92 431 252 260 Hop . | . . . . . . . . Pick Up 39 | 1 7 . 9 1 5 9 7 Fast Attach 14 | . 6 . 2 1 3 . 2 Attach 23 | . 1 . 3 . 4 8 7 Detach 12 | . 3 . 3 1 2 . 3 Swap 40 | . 10 1 6 2 4 17 . Drop 29 | 4 5 . 8 4 . 6 2 Fire 157 | 3 60 . 31 . 36 18 9 Melee 11 | . 1 . . . . 6 4 Ram . | . . . . . . . . Kick . | . . . . . . . . Crush 23 | . 1 . . 2 2 18 . Escape Stasis 10 | . . . . . . 10 . Rewire . | . . . . . . . . Trap . | . . . . . . . . Miscellaneous . | . . . . . . . . Route ------- -11/Scrapyard -10/Materials (discovered 3 exits: *Mat x2 / [*Min]) -10/Mines -9/Materials (discovered 2 exits: *Mat / [*Min]) -9/Mines (discovered 2 exits: *Mat / [*Zio]) -8/Materials (discovered 3 exits: Fac / *Sto / Gar) -8/Garrison (discovered 3 exits: *Mat x3) -8/Materials History --------- Turn | Location | Event 12 | -11/Scrapyard | Discovered new exit (range 3) 24 | -11/Scrapyard | Entered Materials 315 | -10/Materials | Build established: Mutant 428 | -10/Materials | Discovered new exit (range 16) 776 | -10/Materials | Discovered new exit (range 15) 1011 | -10/Materials | Discovered new exit (range 6) 1041 | -10/Materials | Entered Mines 1199 | -10/Mines | Discovered new exit (range 6) 1211 | -10/Mines | Entered Materials 1211 | -9/Materials | Evolved 2 slots: Utility x2 1951 | -9/Materials | Discovered new exit (range 3) 2076 | -9/Materials | Discovered new exit (range 16) 2412 | -9/Materials | Entered Mines 2428 | -9/Mines | A Derelict revealed a hidden shortcut to a safe place 2453 | -9/Mines | Learned 4 Materials zone layouts 2453 | -9/Mines | Joined a pair of Derelicts in attacking an 0b10 outpost 2632 | -9/Mines | Discovered new exit (range 8) 2649 | -9/Mines | Entered Materials 2649 | -8/Materials | Evolved 2 slots: Utility x2 2650 | -8/Materials | Identified exit to Factory 2918 | -8/Materials | Repaired Hpw. Shotgun 3254 | -8/Materials | Build established: Scavenger-Mutant 3603 | -8/Materials | Discovered new exit (range 8) 3620 | -8/Materials | Identified exit to Storage 3861 | -8/Materials | Identified exit to Garrison 3863 | -8/Materials | Entered Garrison 3899 | -8/Garrison | Installed Relay Interface Framework 3926 | -8/Garrison | Discovered new exit (range 83) 3926 | -8/Garrison | Discovered new exit (range 76) 3926 | -8/Garrison | Discovered new exit (range 86) 3980 | -8/Garrison | Garrison Relay disabled 3991 | -8/Garrison | Triggered checkpoint 4041 | -8/Garrison | Build established: Mutant 4116 | -8/Garrison | Triggered checkpoint 4149 | -8/Garrison | Destroyed 7 combat bots 4279 | -8/Garrison | Lost 4 parts (2n1u1w) 4282 | -8/Garrison | Garrison Relay disabled 4313 | -8/Garrison | Triggered checkpoint 4447 | -8/Garrison | Triggered checkpoint 4479 | -8/Garrison | Core integrity fell below 50% 4512 | -8/Garrison | Identified exit to Materials 4514 | -8/Garrison | Entered Materials 4516 | -8/Materials | Lost 7 parts (1p2n1u3w) 4598 | -8/Materials | Core integrity fell below 20% 4747 | -8/Materials | Destroyed by Y-45 Defender with Heavy Assault Rifle Last Messages --------------- 04602_ R-06 Scavenger collects Weight Redist. System. 04618_ T-07 Excavator is excavating. 04626_ Acquired Mining Claw. 04677_ Dropped Mining Claw. 04679_ Acquired Great Maul. 04683_ Discarded Imp. Signal Interpreter. 04684_ Acquired Med. Storage Unit. 04722_ Connecting with Terminal... >>Trojan(Skim) Trojan loaded successfully. Testing... Terminal linked with 2 systems. Please expand to 2 more systems! >>Alert(Purge) Purged threat record, alert level lowered. 04724_ Dropped Hpw. Shotgun. 04725_ Acquired ECM Suite. 04737_ Acquired 81 matter. 04740_ Discarded Targeting Computer. Map ----- +----------------------------------------------------+ | ????### ### #????# ## | # | | ????# ##+######### ## """ # | | ????# # """ # | | ????# ##### # ]] """ # | | ????# """ #???# T + ]] # | | ????# "T" #???# # """ # | | ###### ##??# # """ # | | # # "#??## ## """ # | | # + T#???# ## # | | # # """" "#???# ########### | | # "# """" ##???# #?????????? | | # [ T# """" #????# #?????????? | | # "# #????# #?????????? | | # # #???## ##????????? | | ####### ### #???# ########?? | | ?######"### #???# #?? | | ?# # #???# T #?? | | ?# # #???# #?? | | ?# # #???# #### #?? | | ?# # #???#######??? #?? | | ?# # #?????????????? #?? | | ?# # #?????????????? #?? | | ?# ! # #??????????????? #?? | | ?# + #??????????????? +?? | | ?# # a#????????????????#?? | | ?##########@ #??????????????????? | | ??????????# #??????????????????? | | ?????????? ! #?????????????????? | | ?????????? #?????????????????? | | ?????????#t #?????????????????? | | ?????????+ Y #?????????????????? | | ?????????# #?????????????????? | | ?????????# #?????????????????? | | ?????????# #?????????????????? | | ?????????### r###?????????????????? | | ???????????? a#???????????????????? | | ???????????? #???????????????????? | | ???????????? #???????????????????? | | ???????????? #???????????????????? | | ???????????? #???????????????????? | | ???????????? ?????????????????????? | | ???????????????????????????????????? | | ???????????????????????????????????? | | ???????????????????????????????????? | | ???????????????????????????????????? | | ???????????????????????????????????? | | ???????????????????????????????????? | | ???????????????????????????????????? | | ???????????????????????????????????? | | ???????????????????????????????????? | +----------------------------------------------------+ Best States ------------- Heat Dissipation 31 Energy Generation 14 Energy Capacity 265 Matter Stores 300 Matter Capacity 500 Sight Range 16 Robot Scan Range 14 Terrain Scan Range 16 Terrain Scan Density 10 Armor Coverage 150 Evasion (%) 55 Targeting Accuracy 16 Recoil Reduction 2 Offensive Hacking 10 Relay Coupler Types 2 Relay Coupler Value 59 Item Schematics ----------------- Targeting Computer | -9/Materials | Scanalyzed Hpw. Shotgun | -9/Materials | Scanalyzed Datajack | -8/Materials | Scanalyzed Robot Schematics ------------------ None Fabricated ------------ Nothing Repaired ---------- Hpw. Shotgun | 1% | -8/Materials Alien Tech Used ----------------- None Achievements -------------- Error 47 Challenges ------------ None Game ------ Seed GlidesysCloakStorm Manual? 0 Play Time 00:37:42 Cumulative 41.2 hours Start 2025.05.17 @ 14:36:15 End 2025.05.17 @ 15:22:40 Sessions 1 Manual Loads 0 Difficulty Rogue Special Mode None Game No. 65 Rogue 65 Adventurer 0 Explorer 0 Win Type - Total 1 Types 1/0/0/0/0/0/0/0/0/0 Lore% 28 Gallery% 30 Achievement% 35 Wizard Run 0 Options --------- Layout 2 ASCII 0 Keyboard 0 Movement Numpad Keybinds 0 Fullscreen 2 Font 32/Tamsyn Map View 50x44 Zoom Use 0% Tactical HUD 1 Map Filters NONE Filters NONE Steam 1 RUN: bd3bc00a-276a-4fa4-9251-49e9f4ac1b43